Cogmind - Beta 13 @@@ ROGUE MODE // 2024.03.11 @ 08:28:10 Player: SX_7 Result: Core destroyed Performance ------------- Evolutions (0) 0 Regions Visited (4) 800 Robots Destroyed (40) 200 Value Destroyed (554) 554 Prototype IDs (5) 100 Alien Tech Used (0) 0 Bonus (0) 0 TOTAL SCORE: 1654 Bonus ------- None Cogmind --------- Core Integrity 0/250 Matter 180/300 Energy 232/250 System Corruption 0% Temperature Critical (529) Movement Treading (320) Ox2 Location -9/Mines Parts ------- > --- POWER (1) -------- Ion Engine > --- PROPULSION (2) --- Light Treads > --- UTILITY (2) ------ High-capacity Storage Unit Light Armor Plating > --- WEAPON (2) ------- Beam Cannon Improved Light Cannon > --- INVENTORY (20) --- Light Ion Engine Makeshift Terrain Scanner Makeshift Terrain Scan Processor Seismic Detector Makeshift Salvage Targeting Computer ECM Suite Light Armor Plating Makeshift Laser Assault Rifle Light Assault Rifle Improved Light Cannon Rocket Launcher Makeshift Hammer Peak State ------------ > --- POWER ------------ Ion Engine > --- PROPULSION ------- Light Treads Light Treads > --- UTILITY ---------- High-capacity Storage Unit Hacking Suite > --- WEAPON ----------- Beam Cannon Improved Light Cannon > --- INVENTORY -------- Light Ion Engine Makeshift Terrain Scanner Makeshift Terrain Scan Processor Seismic Detector ECM Suite Light Armor Plating Light Armor Plating Makeshift Laser Assault Rifle Light Assault Rifle Improved Light Cannon Rocket Launcher Makeshift Hammer [Rating: 13] Favorites ----------- Power Ion Engine Engine Ion Engine Propulsion Light Treads Treads Light Treads Utility Hacking Suite Device Seismic Detector Storage Medium Storage Unit Hackware Hacking Suite Protection Light Armor Plating Weapon Beam Cannon Energy Cannon Beam Cannon Ballistic Gun Light Assault Rifle Ballistic Cannon Improved Light Cannon Launcher Rocket Launcher Slashing Weapon Mining Claw Build | -11 -10 -10 -10 -9 ------- Run | Yrd Mat Min Exi Min Slots Evolved . | . . . . . Power . | . . . . . Propulsion . | . . . . . Utility . | . . . . . Weapon . | . . . . . Parts Attached 26 | 7 13 1 4 1 Power 2 | 1 1 . . . Engine 2 | 1 1 . . . Core . | . . . . . Reactor . | . . . . . Propulsion 6 | 2 2 1 1 . Treads 6 | 2 2 1 1 . Leg . | . . . . . Wheel . | . . . . . Hover . | . . . . . Flight . | . . . . . Utility 6 | 2 2 . 1 1 Device 1 | 1 . . . . Storage 3 | 1 1 . 1 . Processor . | . . . . . Hackware 1 | . 1 . . . Protection 1 | . . . . 1 Artifact . | . . . . . Weapon 12 | 2 8 . 2 . Energy Gun . | . . . . . Energy Cannon 1 | . 1 . . . Ballistic Gun 6 | 2 4 . . . Ballistic Cannon 2 | . 1 . 1 . Launcher 1 | . . . 1 . Special Weapon . | . . . . . Impact Weapon . | . . . . . Slashing Weapon 2 | . 2 . . . Piercing Weapon . | . . . . . Special Melee Weapon . | . . . . . Unidentified Prototypes . | . . . . . Parts Lost 5 | . 3 1 . 1 Power 1 | . 1 . . . Propulsion 3 | . 1 1 . 1 Utility . | . . . . . Weapon 1 | . 1 . . . Highest Loss Streak 2 | . 2 1 . 1 To Critical Strikes . | . . . . . Average Slot Usage (%) 94 | . 94 100 93 95 Engine 13 | . 13 14 14 14 Treads 23 | . 23 28 22 24 Device 2 | . 5 . . . Storage 14 | . 14 14 14 14 Hackware 11 | . 8 14 14 10 Energy Cannon 9 | . 2 14 14 14 Ballistic Gun 8 | . 22 . . . Ballistic Cannon 8 | . 1 14 11 14 Launcher 1 | . . . 2 . Naked Turns . | . . . . . Heaviest Build 52 | 11 22 22 52 52 Greatest Support 40 | 40 40 40 40 40 Greatest Overweight (x) 1 | . . 1 1 1 Average Overweight (x) . | . . . . 1 Largest Inventory Capacity 20 | 8 10 10 20 20 Average Capacity 11 | 7 9 10 12 20 Most Carried 14 | 5 10 10 14 14 Average Carried 9 | 1 8 9 10 13 Final Capacity 20 | 8 10 10 20 20 Final Carried 14 | 2 10 9 14 13 Class Distribution -------------------- 100% | Mutant Dominant Class ---------------- Mutant | -10/Materials Mutant | -10/Mines Mutant | -10/Exiles Mutant | -9/Mines Resources | -11 -10 -10 -10 -9 ----------- Run | Yrd Mat Min Exi Min Matter Collected 790 | 330 236 87 137 . Remotely . | . . . . . Salvage Created 1063 | 298 485 86 132 62 Parts 79 | 17 43 5 6 8 Haulers Intercepted 2 | . 2 . . . Recyclers Shooed . | . . . . . Parts Field Recycled . | . . . . . Retrieved Matter . | . . . . . Parts Self-Destructed . | . . . . . Prevented . | . . . . . Kills | -11 -10 -10 -10 -9 ------- Run | Yrd Mat Min Exi Min Combat Hostiles Destroyed 21 | . 9 5 1 6 Guns 9 | . 9 . . . Cannons 11 | . . 5 . 6 AOE 1 | . . . 1 . Classes Destroyed 10 | 3 6 . 1 . Worker 2 | 2 . . . . Builder 1 | . 1 . . . Tunneler 8 | 8 . . . . Hauler 2 | . 2 . . . Recycler 1 | 1 . . . . Operator 2 | . 2 . . . Watcher 3 | . 3 . . . Swarmer 15 | . 6 3 . 6 Grunt 5 | . 3 2 . . Hunter 1 | . . . 1 . Best Kill Streak 6 | 4 4 3 1 6 Combat Bots Only 6 | . 4 3 1 6 Max Kills in Single Turn 2 | 1 1 1 1 2 Gunslinging . | . . . . . Exploded 1 | . . . 1 . Melee . | . . . . . Uniques/NPCs Destroyed . | . . . . . Combat | -11 -10 -10 -10 -9 -------- Run | Yrd Mat Min Exi Min Hostile Shots Fired 118 | . 58 26 . 34 Missed 21 | . 11 2 . 8 Damage Taken 1351 | . 650 223 227 251 Core 287 | . 123 34 64 66 Absorbed by Shields . | . . . . . Core Remaining (%) 100 | 100 . . . . Volleys Fired 147 | 30 73 13 18 13 Largest 2 | 2 2 2 2 2 Hottest 99 | 40 40 99 99 99 Shots Fired 281 | 60 145 26 24 26 Gun 205 | 60 145 . . . Cannon 63 | . . 26 11 26 Launcher 13 | . . . 13 . Special . | . . . . . Kinetic 236 | 60 145 13 5 13 Thermal 32 | . . 13 6 13 Explosive 13 | . . . 13 . Electromagnetic . | . . . . . Robot Hit Streak 10 | 10 6 9 4 3 Robot Miss Streak 6 | 3 5 2 1 6 Penetration Max . | . . . . . Secondary Targets 3 | . 3 . . . Max Gunslinging Chain 1 | . 1 . . . Shots Hit Robots 147 | 39 75 16 8 9 Core Hits 81 | 18 38 6 12 7 Critical Kills 2 | . 2 . . . Critical Parts Destroyed . | . . . . . Critical Strikes 3 | . 2 1 . . Destroy 2 | . 2 . . . Blast 1 | . . 1 . . Melee Attacks 3 | . 3 . . . Impact . | . . . . . Slashing 3 | . 3 . . . Piercing . | . . . . . Sneak Attacks . | . . . . . Combat Hostiles . | . . . . . Follow-up Attacks . | . . . . . Damage Inflicted 1870 | 345 625 304 400 196 Guns 959 | 345 614 . . . Cannons 667 | . . 304 172 191 Explosions 228 | . . . 228 . Melee . | . . . . . Ramming 16 | . 11 . . 5 Kinetic 1290 | 345 614 163 65 103 Thermal 336 | . . 141 107 88 Explosive 228 | . . . 228 . Electromagnetic . | . . . . . Impact . | . . . . . Slashing . | . . . . . Piercing . | . . . . . Highest Corruption . | . . . . . Average Corruption . | . . . . . Corruption Purged . | . . . . . Corruption Blocked . | . . . . . Overload Shots . | . . . . . Overflow Damage 2 | . . . . 2 Projectiles 2 | . . . . 2 Explosions . | . . . . . Melee . | . . . . . Knockbacks 1 | . . 1 . . Impact . | . . . . . Kinetic 1 | . . 1 . . Secondary . | . . . . . Self-Inflicted Damage . | . . . . . Shots . | . . . . . Rammed 3 | . 2 . . 1 Targets Rammed 3 | . 2 . . 1 Kicked . | . . . . . Crushed . | . . . . . Highest Temperature 529 | . 34 351 195 529 Average Temperature 142 | . 13 152 87 250 Received Heat Transfer 168 | . 123 45 . . Effects 3 | . . 1 . 2 Energy Bleed 1 | . . . . 1 Short Circuit 1 | . . 1 . . Damage (core) 1 | . . . . 1 Siege Activations . | . . . . . Robots Corrupted . | . . . . . Combat Hostiles . | . . . . . Parts Fried . | . . . . . Impact Corruptions . | . . . . . Robots Melted . | . . . . . Combat Hostiles . | . . . . . Parts Melted 1 | . . . . 1 Heat Transferred 703 | . . 296 222 185 Parts Sabotaged . | . . . . . Parts Stolen . | . . . . . Parts Stripped . | . . . . . Power Chain Reactions . | . . . . . Alert | -11 -10 -10 -10 -9 ------- Run | Yrd Mat Min Exi Min Peak Influence 195 | 55 195 60 . 131 Initial 35 | . 35 2 . . Average 55 | 25 63 46 . 36 Maximum Alert Level 1 | . 1 . . . Low Security (%) 99 | 100 99 100 . 100 Level 1 . | . . . . . Level 2 . | . . . . . Level 3 . | . . . . . Level 4 . | . . . . . Level 5 . | . . . . . High Security . | . . . . . Max Security . | . . . . . Squads Dispatched 2 | . 2 . . . Investigation . | . . . . . Extermination . | . . . . . Reinforcement 2 | . 2 . . . Assault . | . . . . . Garrison . | . . . . . Intercept . | . . . . . Searches Triggered . | . . . . . Construction Impeded . | . . . . . Haulers Reinforced . | . . . . . Active Scanning Responses . | . . . . . Cargo Convoy Interrupts . | . . . . . Stealth | -11 -10 -10 -10 -9 --------- Run | Yrd Mat Min Exi Min Distress Signals 1 | . 1 . . . Communications Jammed . | . . . . . Distress Signals . | . . . . . Times Spotted 35 | . 22 5 . 8 Peak Tracking Total 7 | . 4 3 . 7 Tactical Retreats 1 | . 1 . . . Traps | -11 -10 -10 -10 -9 ------- Run | Yrd Mat Min Exi Min Traps Triggered 1 | . 1 . . . Indirectly . | . . . . . Trap Hack Attempts . | . . . . . Triggered . | . . . . . Disarmed . | . . . . . Reprogrammed . | . . . . . Reused . | . . . . . Traps Extracted . | . . . . . Installed . | . . . . . Triggered . | . . . . . Machines | -11 -10 -10 -10 -9 ---------- Run | Yrd Mat Min Exi Min Machines Disabled 1 | . . . 1 . Max in Single Turn 1 | . . . 1 . Machines Repaired . | . . . . . Machines Dismantled . | . . . . . Machines Sabotaged . | . . . . . Overloaded Fab Kills . | . . . . . Hacking | -11 -10 -10 -10 -9 --------- Run | Yrd Mat Min Exi Min Machines Accessed 11 | . 9 . 2 . Terminals 7 | . 7 . . . Fabricators . | . . . . . Repair Stations . | . . . . . Recycling Units 2 | . 2 . . . Scanalyzers . | . . . . . Garrison Access . | . . . . . Total Hacks 47 | . 31 . 16 . Successful 30 | . 14 . 16 . Failed 16 | . 16 . . . Catastrophic . | . . . . . Database Lockouts 1 | . 1 . . . Manual 31 | . 30 . 1 . Terminals 26 | . 26 . . . Fabricators . | . . . . . Repair Stations . | . . . . . Recycling Units 5 | . 5 . . . Scanalyzers . | . . . . . Garrison Access . | . . . . . Terminal Hacks 25 | . 9 . 16 . Record 16 | . . . 16 . Robot Analysis 1 | . 1 . . . Prototype ID Bank 5 | . 5 . . . Alert Level 1 | . 1 . . . Locate Traps 1 | . 1 . . . Hauler Manifests 1 | . 1 . . . Fabricator Hacks . | . . . . . Repair Station Hacks . | . . . . . Recycling Unit Hacks 1 | . 1 . . . Retrieve Components 1 | . 1 . . . Scanalyzer . | . . . . . Garrison Access Hacks . | . . . . . Unauthorized Hacks 4 | . 4 . . . Terminals 2 | . 2 . . . Botnet 2 | . 2 . . . Fabricators . | . . . . . Repair Stations . | . . . . . Recycling Units 2 | . 2 . . . Reject 2 | . 2 . . . Scanalyzers . | . . . . . Garrison Access . | . . . . . Data Cores Recovered . | . . . . . Used . | . . . . . Hacking Detections 8 | . 8 . . . Full Trace Events 1 | . 1 . . . Feedback Events . | . . . . . Feedback Blocked . | . . . . . Robot Schematics Acquired . | . . . . . Robots Built . | . . . . . Authchips . | . . . . . Time . | . . . . . Total Robot Build Rating . | . . . . . Part Schematics Acquired . | . . . . . Parts Built . | . . . . . Authchips . | . . . . . Time . | . . . . . Total Part Build Rating . | . . . . . Parts Repaired . | . . . . . Time . | . . . . . Parts Recycled . | . . . . . Recycled Matter . | . . . . . Retrieved Matter . | . . . . . Retrieved Components . | . . . . . Parts Scanalyzed . | . . . . . Part Schematics Acquired . | . . . . . Parts Damaged . | . . . . . Bothacking | -11 -10 -10 -10 -9 ------------ Run | Yrd Mat Min Exi Min Used RIF Installer . | . . . . . Robots Hacked . | . . . . . Non-combat . | . . . . . Combat . | . . . . . Robot Hacks Applied . | . . . . . Relay Couplers Released . | . . . . . Fabnet Peak Effective % . | . . . . . Robots Rewired . | . . . . . Allies Hacked . | . . . . . Hacks Repelled . | . . . . . Allies | -11 -10 -10 -10 -9 -------- Run | Yrd Mat Min Exi Min Total Allies . | . . . . . Largest Group . | . . . . . Highest-Rated Group . | . . . . . Highest-Rated Ally . | . . . . . Total Orders . | . . . . . Ally Attacks . | . . . . . Total Damage . | . . . . . Kills . | . . . . . Allies Corrupted . | . . . . . Allies Melted . | . . . . . Intel | -11 -10 -10 -10 -9 ------- Run | Yrd Mat Min Exi Min Robot Analysis Total 1 | . 1 . . . Derelict Logs Recovered 1 | . . 1 . . Drone Launches . | . . . . . Drone Recoveries . | . . . . . Exploration | -11 -10 -10 -10 -9 ------------- Run | Yrd Mat Min Exi Min Turns Passed 5296 | 254 1856 654 2464 68 Spaces Moved 2616 | 112 1004 342 1147 11 Core 16 | 16 . . . . Treads 2600 | 96 1004 342 1147 11 Legs . | . . . . . Wheels . | . . . . . Hover . | . . . . . Flight . | . . . . . Fastest Speed 50 | 50 160 160 160 240 Average Speed 183 | 144 160 178 209 240 Slowest Speed 240 | 160 160 240 240 240 Overloaded Moves . | . . . . . Propulsion Burnouts . | . . . . . Robots Hopped . | . . . . . Cave-ins Triggered 1 | . . . 1 . Exploration Rate (%) 56 | 7 98 78 92 5 Regions Visited 4 Branch Regions 3 Pre-discovered Areas 2 | . . 1 1 . Known Exits Taken . | . . . . . Unknown Exits Taken 4 | 1 1 1 1 . Scrap Searched 1 | . . 1 . . Spaces Dug 49 | . 3 . 46 . Terrain Destroyed 86 | . 3 . 81 2 Melee 3 | . 3 . . . Projectile 2 | . . . . 2 AOE 81 | . . . 81 . Terrain Rammed . | . . . . . Walls Destroyed . | . . . . . Machines Disabled . | . . . . . Actions | -11 -10 -10 -10 -9 --------- Run | Yrd Mat Min Exi Min Total 2853 | 155 1129 360 1183 26 Wait 18 | . 13 5 . . Move 2611 | 111 1003 341 1145 11 Hop . | . . . . . Pick Up 26 | 7 14 . 5 . Fast Attach 8 | 2 5 . 1 . Attach 8 | 5 2 1 . . Detach 1 | . . . 1 . Swap 10 | . 6 . 3 1 Drop 10 | . 8 . 2 . Fire 147 | 30 73 13 18 13 Melee 3 | . 3 . . . Ram . | . . . . . Kick . | . . . . . Crush 3 | . 2 . . 1 Escape Stasis 1 | . . . 1 . Rewire 7 | . . . 7 . Trap . | . . . . . Miscellaneous . | . . . . . Route ------- -11/Scrapyard -10/Materials (discovered 5 exits: [*Mat x3] / [*Min] / [*Sub]) -10/Mines (discovered 3 exits: [*Mat x2] / *Exi) -10/Exiles (discovered 2 exits: [*Min x2]) -9/Mines History --------- Turn | Location | Event 8 | -11/Scrapyard | Discovered new exit (range 15) 255 | -11/Scrapyard | Entered Materials 304 | -10/Materials | Build established: Mutant 567 | -10/Materials | Discovered new exit (range 12) 1112 | -10/Materials | Central database locked down 1256 | -10/Materials | Discovered new exit (range 6) 1289 | -10/Materials | Discovered new exit (range 15) 1390 | -10/Materials | Discovered new exit (range 8) 1596 | -10/Materials | Discovered new exit (range 15) 2111 | -10/Materials | Entered Mines 2142 | -10/Mines | Discovered new exit (range 5) 2230 | -10/Mines | Received a Rocket Launcher from a helpful Derelict 2301 | -10/Mines | Discovered new exit (range 5) 2418 | -10/Mines | Deemed a non-threat by the Exiles lab entrance 2420 | -10/Mines | Discovered new exit (range 5) 2509 | -10/Mines | Learned location of Zion (-6) 2558 | -10/Mines | Core integrity fell below 50% 2765 | -10/Mines | Entered Exiles 2765 | -10/Exiles | Found Exiles lab destroyed 3655 | -10/Exiles | Discovered new exit (range 14) 4166 | -10/Exiles | Crushed by falling debris 4167 | -10/Exiles | Core integrity fell below 20% 5195 | -10/Exiles | Discovered new exit (range 14) 5229 | -10/Exiles | Entered Mines 5276 | -9/Mines | Met a Derelict bent on vengeance 5298 | -9/Mines | Core destroyed Last Messages --------------- 05132_ G-34 Mercenary is broken beyond repair. 05195_ EXIT=FOUND LOCATION=UNKNOWN GOAL=ESCAPE 05234_ Slammed into T-07 Excavator. 05261_ Flight Unit melted. 05261_ S-10 Pest destroyed. 05273_ Discarded Hacking Suite. 05277_ Lgt. Treads destroyed. 05277_ R-06 Scavenger collects Lgt. Assault Rifle. 05278_ Destroyed Flight Unit. 05280_ R-06 Scavenger collects Lgt. Assault Rifle. 05281_ S-10 Pest destroyed. 05283_ R-06 Scavenger collects Lgt. Assault Rifle. 05284_ S-10 Pest destroyed. 05286_ R-06 Scavenger collects Flight Unit. 05287_ S-10 Pest destroyed. 05292_ Overheating: Energy bleed (-50). 05297_ U-05 Engineer builds a Wall. 05298_ Overheating: Core damaged (-42). Map ----- +----------------------------------------------------+ | | | | | | | | | | | | | ?????????????????????????????????????????????????? | | ?????????????????????????????????????????????????? | | ???????????????????????????###???????????????????? | | ?????????????????????????## ##??????????????????? | | ???????????????????????### #??????????????????? | | ??????????????????????## #??????????????????? | | ??????????????????????# #??????????????????? | | ?????????????????????## #??????????????????? | | ?????????????????????# #???????????????????? | | ?????????????????????# ##???????????????????? | | ?????????????????????## ##????????????????????? | | ??????????????????????### ##?????????????????????? | | ????????????????????????# #??????????????????????? | | ????????????????????????# #??????????????????????? | | ????????????????????????# #??????????????????????? | | ????????????????????????# #??????????????????????? | | ????????????????????????# ###????????????????????? | | ???????????????#????????#%# #????????????????????? | | ???????????????# ###u### ##?????????????????? | | ???????????????? """ [%%%@s%* #?????????????????? | | ???????????????? """ ######## #?????????????????? | | ?????????????????????????????????????????????????? | | ?????????????????????????????????????????????????? | | ?????????????????????????????????????????????????? | | ?????????????????????????????????????????????????? | | ?????????????????????????????????????????????????? | | ?????????????????????????????????????????????????? | | ?????????????????????????????????????????????????? | | ?????????????????????????????????????????????????? | | ?????????????????????????????????????????????????? | | ?????????????????????????????????????????????????? | | ?????????????????????????????????????????????????? | | ?????????????????????????????????????????????????? | | ?????????????????????????????????????????????????? | | ?????????????????????????????????????????????????? | | ?????????????????????????????????????????????????? | | ?????????????????????????????????????????????????? | | ?????????????????????????????????????????????????? | | ?????????????????????????????????????????????????? | | ?????????????????????????????????????????????????? | | ?????????????????????????????????????????????????? | | ?????????????????????????????????????????????????? | | ?????????????????????????????????????????????????? | | ?????????????????????????????????????????????????? | +----------------------------------------------------+ Best States ------------- Heat Dissipation 25 Energy Generation 10 Energy Capacity 250 Matter Stores 300 Matter Capacity 300 Sight Range 16 Terrain Scan Density 10 Armor Coverage 150 Evasion (%) 40 Recoil Reduction 2 Offensive Hacking 10 Item Schematics ----------------- None Robot Schematics ------------------ None Fabricated ------------ Nothing Alien Tech Used ----------------- None Achievements -------------- None Challenges ------------ None Game ------ Seed FlyingInertialDevice Manual? 0 Play Time 00:23:35 Cumulative 28.5 hours Start 2024.03.10 @ 23:09:07 End 2024.03.11 @ 08:28:10 Sessions 3 Manual Loads 0 Difficulty Rogue Special Mode None Game No. 33 Rogue 32 Adventurer 1 Explorer 0 Win Type - Total 2 Types 2/0/0/0/0/0/0/0/0 Lore% 23 Gallery% 24 Achievement% 25 Wizard Run 0 Options --------- Layout 0 ASCII 0 Keyboard 0 Movement Arrows Keybinds 0 Fullscreen 1 Font 20/X11 Map View 66x50 Zoom Use 0% Tactical HUD 1 Map Filters NONE Filters SHIFT_HUE(10)|LOW_CONTRAST(6,12,16) Steam 1 RUN: 2f1bc160-3e90-414a-8c6e-ee30e3ea9a0e